[Event "1000GM Schev-G4 April 2024"]
[Site "Santa Clara"]
[Date "2024.04.22"]
[Round "5.2"]
[White "Benavente Vazquez, Juan Jose"]
[Black "Zhou, Ivan"]
[Result "1/2-1/2"]
[ECO "D79"]
[WhiteElo "2185"]
[BlackElo "1969"]
[Annotator "TA"]
[PlyCount "64"]
[EventDate "2024.03.06"]
[EventType "schev"]
[EventCountry "USA"]
[SourceTitle "playchess.com"]
[Source "ChessBase"]
[SourceQuality "1"]
[TimeControl "5400+30"]

{[%evp 21,64,22,30,13,53,35,31,29,56,0,31,40,22,20,23,26,27,31,39,34,45,16,31,33,30,9,40,14,65,48,59,39,27,22,50,0,0,0,40,0,0,-868,79,0,66]} 1. d4 {[%emt 0:02:27]} Nf6 {[%emt 0:00:07]} 2. c4 {[%emt 0:00:05]} g6 {[%emt 0:00:12]} 3. Nf3 {[%emt 0:00:16]} Bg7 {[%emt 0:00:09]} 4. g3 {[%emt 0:00:05]} c6 {[%emt 0:00:18]} 5. Bg2 {[%emt 0:00:07]} d5 {[%emt 0:00:18]} 6. cxd5 {[%emt 0:02:30]} cxd5 {[%emt 0:00:18]} 7. Ne5 {[%emt 0:00:04]} Nc6 {[%emt 0:01:53]} 8. Nxc6 {[%emt 0:00:06]} bxc6 {[%emt 1:31:15]} 9. O-O {[%emt 0:00:11]} O-O {[%emt 0:00:00]} 10. Nc3 {[%emt 0:00:10]} Bf5 {[%emt 0:00:00]} 11. Bf4 {[%emt 0:00:42]} Ne4 {[%emt 0:00:00][%cal Bf6e4,Be4d6,Bd6b5][%mdl 32]} 12. Na4 {[%emt 0:20:22]} Qa5 {[%emt 0:00:00]} 13. Rc1 {[%emt 0:02:19][%cal Ob2b3]} Rac8 {[%emt 0:00:00]} 14. b3 {[%emt 0:08:30][%cal Og3g4] White is slightly better.} Qb4 {[%emt 0:00:00]} 15. Be3 {[%emt 0:03:57]} (15. e3 $14) 15... Rfd8 {[%emt 0:00:00]} 16. f3 {[%emt 0:18:28]} Nd6 {[%emt 0:00:00]} 17. Qe1 {[%emt 0:02:24]} Qxe1 {[%emt 0:00:00]} 18. Rfxe1 {[%emt 0:00:17]} Nb5 {[%emt 0:00:00]} 19. Red1 {[%emt 0:00:13]} e5 {[%emt 0:00:00]} 20. dxe5 {[%emt 0:00:39]} Bxe5 {[%emt 0:00:00]} 21. Bc5 {[%emt 0:00:52]} Bf6 {[%emt 0:00:00]} 22. e3 {[%emt 0:00:27]} Re8 {[%emt 0:00:00]} 23. Kf2 {[%emt 0:01:15]} h5 {[%emt 0:00:00]} 24. Rd2 {[%emt 0:01:02]} Kg7 {[%emt 0:00:00]} (24... g5 $11) 25. Bf1 $14 {[%emt 0:01:32]} Kg8 {[%emt 0:00:00]} 26. Nb2 {[%emt 0:00:26]} Bc3 {[%emt 0:00:00]} 27. Re2 {[%emt 0:01:55]} Bg7 {[%emt 0:00:00]} 28. Rd2 {[%emt 0:03:27]} Bc3 {[%emt 0:00:00]} 29. Re2 {[%emt 0:00:57] [#] a4 would now be deadly.} Bg7 {[%emt 0:00:00]} 30. Rd2 {[%emt 0:06:25]} Bc3 {[%emt 0:00:00]} 31. Kg2 $2 {[%emt 0:23:50][%mdl 8192]} Bg7 $2 (31... Bxd2 $19 32. Rd1 Bxe3 33. Bxe3 Rxe3) 32. Kf2 {[%emt 0:00:30]} (32. Nd1 $16) 32... d4 {[%emt 0:12:00] Weighted Error Value: White=0.44/Black=0.35.  Loses game:     	White=1     	---        Missed win:     	---       	Black=1      Mistake:       	White=2     	Black=1      Inaccurate:     	White=3     	Black=5      OK:         	White=8     	Black=6      Best:        	---       	Black=2} 1/2-1/2

[Event "1000GM Schev-G4 April 2024"]
[Site "Santa Clara"]
[Date "2024.04.22"]
[Round "5.3"]
[White "Lorenzana, Wilson Estuardo"]
[Black "Xia, Joshua"]
[Result "1-0"]
[ECO "B90"]
[WhiteElo "2072"]
[BlackElo "2012"]
[Annotator "TA"]
[PlyCount "121"]
[EventDate "2024.03.06"]
[EventType "schev"]
[EventCountry "USA"]
[SourceTitle "playchess.com"]
[Source "ChessBase"]
[SourceQuality "1"]
[TimeControl "5400+30"]

{[%evp 10,121,23,0,0,0,43,41,45,41,35,31,101,97,107,109,114,114,142,93,124,123,156,147,178,165,237,194,215,232,237,235,272,240,266,266,250,220,293,253,310,318,275,218,221,179,255,217,300,339,347,334,407,427,410,404,405,397,372,397,400,388,395,408,402,390,396,375,487,466,479,492,435,410,475,433,429,381,620,592,1418,1158,1428,1401,1275,1327,2712,2746,29975,8995,5935,7000,29975,29974,29981,29981,29981,29982,29985,29986,29986,29987,29987,29988,29989,29990,29990,29991,29993,29994,29994,29995,29996,29996]} 1. e4 {[%emt 0:00:58]} c5 {[%emt 0:00:11]} 2. Nf3 {[%emt 0:00:05]} d6 {[%emt 0:00:19]} 3. d4 {[%emt 0:00:08]} cxd4 {[%emt 0:00:11]} 4. Nxd4 {[%emt 0:00:02]} Nf6 {[%emt 0:00:18]} 5. Nc3 {[%emt 0:00:03]} a6 {[%emt 0:00:06]} 6. a3 {[%emt 0:00:05]} e5 {[%emt 0:00:09]} 7. Nf5 {[%emt 0:00:05]} Bxf5 {[%emt 0:00:30]} 8. exf5 {[%emt 0:00:06]} d5 {[%emt 0:00:02][%cal Bd6d5,Bd5d4][%mdl 32] White is slightly better.} 9. Bg5 $1 {[%emt 0:00:08]} d4 {[%emt 0:00:06]} 10. Bxf6 {[%emt 0:00:28]} gxf6 {[%emt 0:00:04]} (10... Qxf6 $14 11. Nd5 Qd6) 11. Ne4 $16 {[%emt 0:00:08]} Be7 {[%emt 0:04:26]} 12. Bd3 {[%emt 0:03:38] White is more active.} Nd7 {[%emt 0:01:09]} 13. O-O {[%emt 0:00:10]} Nb6 {[%emt 0:01:21]} 14. Ng3 {[%emt 0:06:44]} (14. c4 $142) 14... Nd5 {[%emt 0:01:29]} 15. Nh5 {[%emt 0:00:18]} Rg8 {[%emt 0:00:16]} 16. Qf3 {[%emt 0:00:11]} Qd7 {[%emt 0:00:39]} 17. Be4 {[%emt 0:03:28]} Rd8 {[%emt 0:02:10]} (17... O-O-O $142 18. c3 d3) 18. c3 {[%emt 0:01:21]} Kf8 {[%emt 0:08:08]} 19. cxd4 {[%emt 0:00:43]} exd4 {[%emt 0:01:03]} 20. Rfd1 {[%emt 0:02:19]} Nb6 {[%emt 0:05:50]} 21. Rac1 {[%emt 0:06:42] Wards off Nc4} (21. Bxb7 Nc4 $18) 21... Qd6 {[%emt 0:07:40]} 22. h4 {[%emt 0:08:09]} Nd7 {[%emt 0:01:22]} 23. g3 {[%emt 0:09:55]} b5 {[%emt 0:07:12]} 24. Rc2 {[%emt 0:10:44]} Ne5 {[%emt 0:03:44]} 25. Qf4 {[%emt 0:00:18]} Ng4 {[%emt 0:15:07]} 26. Qxd6 {[%emt 0:03:49]} Rxd6 {[%emt 0:00:16]} 27. Rcd2 {[%emt 0:00:12]} Ne5 {[%emt 0:00:35]} (27... Bd8 $142 28. Rxd4 Rxd4 29. Rxd4 Bb6) 28. b3 {[%emt 0:05:55][%cal Bb2b3,Bb3b4][%mdl 32]} (28. Rxd4 Rxd4 29. Rxd4 Rg4) 28... Rg4 {[%emt 0:10:27]} 29. f4 {[%emt 0:00:16]} (29. Rxd4 $2 Rxd4 (29... Rxe4 $2 30. Rxd6 Bxd6 31. Rxd6 $18) (29... Nf3+ $2 30. Bxf3 Rgxd4 31. Rb1 $19) 30. Rxd4 Nf3+ (30... Bxa3 31. Nf4 $11) 31. Bxf3 Rxd4 $19) 29... Nd7 {[%emt 0:01:10]} 30. b4 {[%emt 0:01:14]} (30. Rxd4 $2 Rxd4 31. Bf3 (31. Rxd4 $2 Bc5 $19) 31... Rxd1+ 32. Bxd1 Bc5+ 33. Kg2 Rg8 $19) 30... Bd8 {[%emt 0:00:35]} 31. Kg2 {[%emt 0:00:32]} (31. Rxd4 $2 {too greedy.} Rxd4 (31... Bb6 $2 32. Kg2 $19) 32. Re1 (32. Rxd4 $2 {perishes.} Bb6 $19) 32... Rd2 $19) 31... Bb6 {[%emt 0:00:10]} 32. Rc2 {[%emt 0:01:07]} Bd8 {[%emt 0:03:42]} 33. Rc6 {[%emt 0:01:43]} Rxc6 {[%emt 0:13:49]} 34. Bxc6 {[%emt 0:00:07][%cal Od1d4]} Nb8 {[%emt 0:02:37]} 35. Bb7 {[%emt 0:00:29]} Rg8 {[%emt 0:01:07]} 36. Rxd4 {[%emt 0:01:32]} Ke7 {[%emt 0:00:11]} 37. Rd2 {[%emt 0:01:38]} Re8 {[%emt 0:00:22]} 38. g4 {[%emt 0:01:59]} Kf8 {[%emt 0:00:43]} 39. g5 {[%emt 0:00:27]} fxg5 {[%emt 0:00:40]} 40. hxg5 {[%emt 0:03:59]} ({Resist} 40. fxg5 Bb6 41. Rd6 Re2+ 42. Kf1 Bc7) 40... a5 {[%emt 0:00:37]} 41. f6 {[%emt 0:00:23] [#] Threatens to win with Ng7.} Bc7 {[%emt 0:00:39]} 42. bxa5 {[%emt 0:02:50]} Bxa5 {[%emt 0:00:36]} 43. Rb2 {[%emt 0:00:15]} Re3 $2 {[%emt 0:01:18]} (43... Bc7 44. Rxb5 Re2+ 45. Kf3 Rc2) 44. Rxb5 $18 {[%emt 0:00:08]} Rxa3 {[%emt 0:00:10]} 45. Rc5 {[%emt 0:00:33] Threatening mate with Rc8+.} Ke8 {[%emt 0:01:31]} 46. Rc8+ {[%emt 0:01:29]} Kd7 {[%emt 0:00:36]} 47. Rxb8 {[%emt 0:00:05]} Kc7 {[%emt 0:00:03]} 48. Rf8 {[%emt 0:00:05]} Kxb7 {[%emt 0:00:32]} 49. Rxf7+ {[%emt 0:00:05] KRB-KRN} Kc6 {[%emt 0:00:03]} 50. Rxh7 {[%emt 0:00:24] f7 would kill now.} Kd5 {[%emt 0:00:51]} 51. Re7 {[%emt 0:01:18] White mates.} Bb4 {[%emt 0:00:16]} 52. Re5+ {[%emt 0:00:14]} Kd4 {[%emt 0:00:06]} 53. g6 {[%emt 0:00:26]} Bd6 {[%emt 0:00:26]} 54. g7 {[%emt 0:00:47]} Ra2+ {[%emt 0:00:49]} 55. Kf3 {[%emt 0:00:17]} Bxe5 {[%emt 0:00:59]} 56. fxe5 {[%emt 0:00:32]} Kxe5 {[%emt 0:00:07]} 57. g8=Q {[%emt 0:00:30]} Ra3+ {[%emt 0:01:02]} 58. Kg2 {[%emt 0:00:07]} Ra7 {[%emt 0:00:09]} 59. Qb8+ {[%emt 0:00:17]} Kf5 {[%emt 0:00:06]} 60. Qxa7 {[%emt 0:00:06]} Kg6 {[%emt 0:00:13] [#]} 61. Kf3 $1 {[%emt 0:02:02] Black got outplayed after the opening.   Weighted Error Value: White=0.12 (very precise) /Black=0.55.  Mistake:       	White=1     	Black=4      Inaccurate:     	---       	Black=5      OK:         	White=16    	Black=10     Best:        	White=1     	Black=1      Strong:       	White=1     	---} 1-0

[Event "1000GM Schev-G4 April 2024"]
[Site "Santa Clara"]
[Date "2024.04.22"]
[Round "5.4"]
[White "Kakkad, Vikrant"]
[Black "Varela Velazquez, Carlos Francisco"]
[Result "0-1"]
[ECO "A26"]
[WhiteElo "2000"]
[BlackElo "2084"]
[Annotator "NA COMBH RC"]
[PlyCount "54"]
[EventDate "2024.03.06"]
[EventType "schev"]
[EventCountry "USA"]
[SourceTitle "playchess.com"]
[Source "ChessBase"]
[SourceQuality "1"]
[TimeControl "5400+30"]

1. c4 {[%emt 0:08:26]} Nf6 {[%emt 0:00:13]} 2. Nc3 {[%emt 0:00:07]} g6 {[%emt 0:00:22]} 3. e4 {[%emt 0:00:30]} e5 {[%emt 0:00:12]} 4. g3 {[%emt 0:00:10]} Bg7 {[%emt 0:00:07]} 5. Bg2 {[%emt 0:00:04]} O-O {[%emt 0:00:07]} 6. Nge2 {[%emt 0:00:02]} d6 {[%emt 0:00:04]} 7. O-O {[%emt 0:00:06]} Be6 {[%emt 0:00:02]} 8. d3 {[%emt 0:00:11]} Qd7 {[%emt 0:00:02]} 9. f4 {[%emt 1:25:24]} Nc6 {[%emt 0:00:05]} 10. Nd5 {[%emt 0:00:00]} Bg4 {[%emt 0:00:06]} 11. Be3 {[%emt 0:00:00] A26: English Opening vs King's Indian with ...Nc6 and d3.} exf4 {[%emt 0:00:33]} 12. Ndxf4 {[%emt 0:00:00]} g5 {[%emt 0:00:19]} 13. Nd5 {[%emt 0:00:00]} Nxd5 {[%emt 0:00:07]} 14. cxd5 {[%emt 0:00:00]} Nd4 {[%emt 0:00:05]} 15. Bxd4 {[%emt 0:00:00]} Bxd4+ {[%emt 0:00:02]} 16. Kh1 {[%emt 0:00:00]} Bxb2 {[%emt 0:00:12]} 17. Rb1 {[%emt 0:00:00]} Bg7 {[%emt 0:00:22]} 18. Rxb7 {[%emt 0:00:00] [#]} Rfb8 {[%emt 0:03:15]} ({Black should play} 18... Rab8 $1 $17 {[%cal Rb8b7]} 19. Rb3 Rxb3 20. axb3 Qb5) 19. Qb3 {[%emt 0:00:00]} Qc8 {[%emt 0:03:49]} 20. Rxb8 {[%emt 0:00:00]} Rxb8 {[%emt 0:00:09]} 21. Qd1 {[%emt 0:00:00]} Rb2 {[%emt 0:01:52]} 22. Bf3 {[%emt 0:00:00]} Bxf3+ {[%emt 0:25:15]} ({Inferior is} 22... Rxa2 23. Nc1 Bxf3+ 24. Qxf3 $11) 23. Rxf3 {[%emt 0:00:00]} Rxa2 {[%emt 0:11:09]} 24. d4 $19 {[%emt 0:00:00]} Qa6 {[%emt 0:15:45]} 25. Nc1 {[%emt 0:00:00]} Ra1 {[%emt 0:11:01]} 26. Qc2 {[%emt 0:00:00]} g4 {[%emt 0:09:10]} 27. Qxc7 {[%emt 0:00:00] Check Result:-#11} Rxc1+ {[%emt 0:00:14]} 0-1

[Event "1000GM Schev-G4 April 2024"]
[Site "Santa Clara"]
[Date "2024.04.22"]
[Round "5.5"]
[White "Yang, Maxwell"]
[Black "Pinzon, Jairo David"]
[Result "1-0"]
[ECO "A40"]
[WhiteElo "1987"]
[BlackElo "2077"]
[Annotator "TA"]
[PlyCount "117"]
[EventDate "2024.03.06"]
[EventType "schev"]
[EventCountry "USA"]
[SourceTitle "playchess.com"]
[Source "ChessBase"]
[SourceQuality "1"]
[TimeControl "5400+30"]

{[%evp 10,117,74,41,37,13,47,9,31,0,28,-5,-11,-48,-37,-66,-53,-109,-39,-82,-33,-79,-77,-91,-24,-31,-37,-37,-17,-23,-22,-62,-63,-83,-37,-70,-61,-69,-29,-77,-57,-80,-70,-118,-82,-88,-79,-101,-101,-104,-93,-93,-103,-95,-95,-95,-95,-106,-106,-106,-95,-106,-90,-90,-90,-90,-47,-106,-102,-96,-66,-108,-115,-125,-125,-136,-14,-8,0,0,0,0,0,0,0,0,0,0,0,0,0,0,0,0,0,0,8,8,8,8,884,860,1916,6087,6087,5616,29996,29997,29997,29998]} 1. d4 {[%emt 0:00:10]} c5 {[%emt 0:01:57]} 2. d5 {[%emt 0:00:48]} g6 {[%emt 0:00:27]} 3. c4 {[%emt 0:00:07]} Bg7 {[%emt 0:00:09]} 4. Nc3 {[%emt 0:00:18]} Bxc3+ {[%emt 0:01:47]} 5. bxc3 {[%emt 0:00:08]} d6 {[%emt 0:00:11]} 6. Nf3 {[%emt 0:00:18]} Nf6 {[%emt 0:00:17]} 7. Qa4+ {[%emt 0:00:32]} Bd7 {[%emt 0:02:00]} 8. Qc2 {[%emt 0:00:09]} Qa5 {[%emt 0:03:18] The position is equal.} 9. Bd2 {[%emt 0:00:34]} Qa4 {[%emt 0:03:45]} 10. Qxa4 {[%emt 0:01:33]} Bxa4 {[%emt 0:00:10]} 11. e3 {[%emt 0:00:18]} e5 {[%emt 0:02:47]} 12. Rb1 {[%emt 0:02:37]} b6 {[%emt 0:00:21]} 13. Nh4 {[%emt 0:02:10]} (13. Ng5 $15) 13... Bd7 {[%emt 0:08:04]} (13... Nbd7 $17 14. Be2 h6) 14. Nf3 {[%emt 0:02:39]} Kd8 {[%emt 0:03:44]} (14... e4 $17 15. Ng1 Bf5) 15. Rb3 {[%emt 0:08:09]} (15. Ng5 $15 Ke7 16. Bc1) 15... h6 $17 {[%emt 0:01:54]} 16. Bc1 {[%emt 0:01:17]} Nh5 {[%emt 0:04:31]} (16... e4 $17 17. Nd2 Kc7) 17. Bd3 {[%emt 0:01:31]} f5 {[%emt 0:01:00]} 18. e4 {[%emt 0:00:25]} f4 {[%emt 0:02:54]} 19. Nd2 {[%emt 0:01:55]} g5 {[%emt 0:00:50]} 20. f3 {[%emt 0:00:15]} Kc7 {[%emt 0:01:16]} 21. Be2 {[%emt 0:01:55]} Na6 {[%emt 0:01:31]} ({Black should play} 21... Nf6 $17) 22. Nf1 {[%emt 0:01:15][%cal Oa2a4]} Rag8 {[%emt 0:01:07]} 23. h3 {[%emt 0:08:47][%cal Oa2a4]} Nf6 {[%emt 0:01:03]} 24. Kf2 {[%emt 0:02:54]} (24. a4 $11 {should be considered.}) 24... Kb7 {[%emt 0:00:29]} 25. Rb1 {[%emt 0:00:57]} h5 {[%emt 0:01:04]} 26. Ba3 {[%emt 0:01:39]} (26. g3 $15) 26... Rh6 {[%emt 0:00:32]} 27. Nd2 {[%emt 0:01:50]} Nc7 {[%emt 0:00:39]} 28. Bb2 {[%emt 0:05:35]} Rgh8 {[%emt 0:00:19]} 29. Ba3 {[%emt 0:54:15]} Nce8 {[%emt 0:00:23]} (29... g4 {seems wilder.} 30. h4 Rg8 31. Rbf1 Rhg6) 30. Rbg1 {[%emt 0:00:00]} g4 {[%emt 0:00:38]} 31. hxg4 {[%emt 0:00:00]} hxg4 {[%emt 0:00:10]} 32. Rxh6 {[%emt 0:00:00]} Rxh6 {[%emt 0:00:08]} 33. Bb2 {[%emt 0:00:00]} g3+ {[%emt 0:01:29]} 34. Ke1 {[%emt 0:00:00]} Nc7 {[%emt 0:00:24]} 35. Kd1 {[%emt 0:00:00]} a6 {[%emt 0:00:37]} 36. Kc2 {[%emt 0:00:00]} Ba4+ {[%emt 0:00:50]} 37. Kc1 {[%emt 0:00:00]} b5 {[%emt 0:01:06]} 38. Bd1 {[%emt 0:00:00]} ({White should try} 38. cxb5 $15 axb5 (38... Nxb5 39. Nc4 $11) 39. c4) 38... Bxd1 $1 {[%emt 0:00:13]} 39. Kxd1 {[%emt 0:00:00]} Nd7 $1 {[%emt 0:00:20]} 40. cxb5 {[%emt 0:00:00]} axb5 {[%emt 0:00:16]} 41. Kc2 {[%emt 0:00:00] [#]} Nb6 $1 {[%emt 0:00:18] Prevents c4} 42. Kb3 {[%emt 0:00:00]} Ne8 {[%emt 0:02:15]} (42... c4+ $17 43. Kc2 Na4) 43. c4 $11 {[%emt 0:00:00]} Nxc4 {[%emt 0:00:53]} 44. Nxc4 {[%emt 0:00:00]} bxc4+ {[%emt 0:00:08]} 45. Kxc4 {[%emt 0:00:00][%mdl 4096] Endgame. KRB-KRN} Ka6 {[%emt 0:00:32]} 46. Bc3 {[%emt 0:00:00]} Rh2 {[%emt 0:02:37]} 47. a4 {[%emt 0:00:00]} Nf6 {[%emt 0:01:19]} 48. a5 {[%emt 0:00:00]} Nd7 {[%emt 0:00:14]} 49. Bd2 {[%emt 0:00:00]} Nf8 {[%emt 0:01:17]} 50. Be1 {[%emt 0:00:00]} Ng6 {[%emt 0:00:49]} 51. Bc3 {[%emt 0:00:00] Hoping for Rb1.} Nh4 {[%emt 0:00:46]} 52. Rb1 {[%emt 0:00:00] Threatens to win with Rb6+.} Nxg2 {[%emt 0:01:27] ...Ne3+ is the strong threat.} (52... Ka7 $5 53. Rb6 $8 Rxg2 54. Rxd6 Nxf3 $11) 53. Rb6+ {[%emt 0:00:00]} Ka7 {[%emt 0:00:07] And now ...Ne3+ would win.} 54. Rxd6 {[%emt 0:00:00]} Ne3+ $2 {[%emt 0:00:52][%mdl 8192] [#] This costs Black the game.} (54... Rh1 $11) 55. Kb5 $1 $18 {[%emt 0:00:00]} (55. Kxc5 Rc2 56. Rd7+ Ka6 57. Rd6+ Kb7 58. a6+ Ka7 $11) 55... g2 {[%emt 0:02:53]} 56. Rd7+ {[%emt 0:00:00]} (56. Kxc5 $2 g1=Q (56... g1=R $2 57. Rd7+ Ka6 58. Bxe5 $19) 57. Rd7+ Ka6 58. Rd6+ Kb7 59. Rb6+ Ka7 $19) 56... Ka8 {[%emt 0:02:59]} 57. Bxe5 {[%emt 0:00:00][%cal Ob5a6] Ka6! would kill now.} ({Not} 57. Rg7 Rh1 $11) 57... Rh8 {[%emt 0:14:05]} 58. Ka6 {[%emt 0:00:00][%csl Ga6][%cal Rd7a7]} (58. Bxh8 $2 {is the wrong capture.} g1=Q (58... g1=B 59. Ka6 Kb8 60. d6 Kc8 61. Rc7+ Kd8 62. Bf6+ Ke8 63. Rg7 Kf8 64. d7 Bh2 65. d8=Q#) 59. Rc7 Qf1+ 60. Kxc5 Qxf3 $19) 58... Rh6+ {[%emt 0:00:28]} 59. d6 {[%emt 0:00:00] Weighted Error Value: White=0.20 (precise) /Black=0.29 (precise) .  Loses game:     	---       	Black=1      Mistake:       	White=5     	Black=5      Inaccurate:     	White=9     	Black=6      OK:         	White=8     	Black=11     Best:        	White=5     	---        Strong:       	White=1     	Black=3} 1-0